bitfinex-derivatives/quotes_SOLF0:USTF0_20250227
["timestamp","ask_amount","ask_price","bid_price","bid_amount"]
[1740685570492,1.32483067,136.73,136.54,1.998]
[1740685570692,1.32483067,136.73,136.55,2.0094]
[1740685571089,0.05364081,136.65,136.56,7.3327]
[1740685571294,12.14,136.65,136.63,4.417e-05]
[1740685571589,0.04637433,136.62,136.55,2.0094]
[1740685571785,12.14,136.65,136.55,2.0094]
[1740685572192,12.14,136.65,136.55,9.3424]
[1740685572491,0.04728646,136.61,136.52,12.86096]
[1740685572796,7.3345,136.53,136.52,12.86096]
[1740685572995,12.14,136.53,136.52,12.86096]
[1740685573696,19.4745,136.53,136.52,6e-05]
[1740685573897,41.4545,136.53,136.52,6e-05]
[1740685575993,19.4745,136.53,136.52,6e-05]
[1740685580694,7.3345,136.53,136.52,6e-05]
[1740685580994,0.05263514,136.54,136.51,0.05435467]
[1740685582002,7.335,136.52,136.51,0.05435467]
[1740685582800,34.1,136.52,136.51,5.467e-05]
[1740685583004,35.42081479,136.52,136.51,5.467e-05]
[1740685583608,12.12,136.52,136.51,5.467e-05]
[1740685584604,0.05639663,136.53,136.51,5.467e-05]
[1740685586611,22.03639663,136.53,136.51,5.467e-05]
[1740685586806,29.37099663,136.53,136.51,5.467e-05]
[1740685587418,7.335,136.52,136.51,5.467e-05]
[1740685587715,8.65476681,136.52,136.51,5.467e-05]
[1740685587912,30.63476681,136.52,136.51,5.467e-05]
[1740685589613,30.63404086,136.52,136.51,5.467e-05]
[1740685591214,29.315,136.52,136.51,5.467e-05]
[1740685591517,38.28633866,136.52,136.51,5.467e-05]
[1740685593120,30.95133866,136.52,136.39,3.8067]
[1740685593319,192.31864207,136.51,136.39,21.93583772]
[1740685593517,226.54864207,136.5,136.32,5.8611]
[1740685593710,226.54864207,136.5,136.33,7.3451]
[1740685593711,7.3409,136.42,136.33,7.3451]
[1740685593915,12.1,136.41,136.33,7.3451]
[1740685594116,12.1,136.41,136.33,29.28093772]
[1740685594311,0.05208716,136.38,136.36,0.05086638]
[1740685595019,0.05208716,136.38,136.36,21.9867041]
[1740685595826,0.05208716,136.38,136.36,0.05086638]
[1740685599729,0.05208716,136.38,136.36,7.39426638]
[1740685600227,0.05208716,136.38,136.36,0.05086638]
[1740685601225,7.3431,136.37,136.36,0.05086638]
[1740685602330,7.345,136.34,136.29,16.5]
[1740685602529,12.06,136.34,136.29,38.43583772]
[1740685603022,7.3455,136.33,136.29,38.43583772]
[1740685603530,0.05469851,136.32,136.3,0.05215063]
[1740685603926,0.05469851,136.32,136.3,21.98798835]
[1740685604829,7.40089851,136.32,136.3,21.98798835]
[1740685605828,7.3463,136.31,136.3,21.98798835]
[1740685606833,7.3463,136.31,136.3,0.05215063]
[1740685607231,0.05469851,136.32,136.29,16.5]
[1740685607430,7.3468,136.3,136.29,16.5]
[1740685608631,7.3468,136.3,136.29,5.1091]
[1740685608931,0.05469851,136.32,136.29,5.1091]
[1740685609337,7.3463,136.31,136.29,5.1091]
[1740685609537,0.05469851,136.32,136.29,5.1091]
[1740685610232,0.05469851,136.32,136.29,7.0857]
[1740685610532,0.05469851,136.32,136.29,29.02153772]
[1740685610732,7.40079851,136.32,136.29,29.02153772]
[1740685610932,0.05469851,136.32,136.29,29.02153772]
[1740685611133,0.05469851,136.32,136.29,8.9997]
[1740685612038,12.06,136.38,136.29,8.9997]
[1740685612231,12.06,136.37,136.3,1.8545]
[1740685612439,7.3439,136.36,136.3,1.8545]
[1740685613034,7.3439,136.36,136.31,7.346]
[1740685613238,7.3452,136.33,136.32,0.04878644]
[1740685613441,0.05356457,136.34,136.32,0.04878644]
[1740685614531,12.06,136.37,136.32,0.04878644]
[1740685615545,12.06,136.39,136.32,0.04878644]
[1740685615742,0.05006672,136.36,136.32,0.04878644]
[1740685616135,12.06,136.39,136.32,0.04878644]
[1740685616640,12.06,136.39,136.34,7.3444]
[1740685617447,0.05316189,136.38,136.35,0.05606215]
[1740685617641,12.04,136.42,136.35,0.05606215]
[1740685617939,85.75864261,136.44,136.3,1.8545]
[1740685618145,1.31983779,136.43,136.31,14.6926]
[1740685618345,105.13834261,136.44,136.4,7.3411]
[1740685618546,97.79864261,136.44,136.4,7.3411]
[1740685618747,0.04892835,136.43,136.41,0.05386944]
[1740685619346,1.36868455,136.43,136.41,0.05386944]
[1740685619535,0.04892835,136.43,136.41,0.05386944]
[1740685621450,199.64,136.54,136.41,0.05386944]
[1740685621745,21.01475543,136.53,136.4,3.8307]
[1740685621949,1.32037561,136.52,136.4,3.8307]
[1740685622145,7.3393,136.45,136.4,11.1719]
[1740685622355,19.69437982,136.53,136.4,25.76653772]
[1740685622550,15.99065342,136.52,136.4,25.76653772]
[1740685622853,1.32055342,136.51,136.35,1.9469]
[1740685623049,14.6745,136.48,136.35,3.8584]
[1740685623248,1.32055342,136.47,136.35,25.79423772]
[1740685623453,12.04,136.46,136.35,3.8584]
[1740685624153,12.04,136.46,136.35,25.79423772]
[1740685624744,12.04,136.46,136.35,3.8584]
[1740685625453,7.3379,136.47,136.35,3.8584]
[1740685625649,1.1762,136.47,136.4,0.05249188]
[1740685625851,0.65846677,136.55,136.4,0.05249188]
[1740685625852,12.06,136.52,136.4,0.05249188]
[1740685626050,1.32006503,136.51,136.4,0.05249188]
[1740685626251,7.3366,136.49,136.45,7.3384]
[1740685626452,12.06,136.53,136.46,1.9866]
[1740685626850,7.65255635,136.57,136.46,1.9866]
[1740685627052,12.06,136.57,136.46,1.9866]
[1740685627247,7.3341,136.54,136.48,7.3366]
[1740685627451,12.06,136.57,136.46,1.9866]
[1740685628054,7.3346,136.53,136.46,1.9866]
[1740685628650,7.3346,136.53,136.47,7.3375]
[1740685628959,12.06,136.57,136.46,1.9866]
[1740685629150,1.32151834,136.56,136.46,1.9866]
[1740685629351,7.3345,136.53,136.46,1.9866]
[1740685629551,12.06,136.57,136.46,1.9866]
[1740685629753,12.06,136.57,136.47,7.3373]
[1740685629954,12.06,136.57,136.46,23.92243772]
[1740685630250,1.32144087,136.56,136.46,23.92243772]
[1740685630454,7.3353,136.52,136.46,23.92243772]
[1740685630655,7.3353,136.52,136.46,31.26063772]
[1740685630955,7.3353,136.52,136.47,1.9254]
[1740685631259,7.3353,136.52,136.48,0.04907795]
[1740685631758,7.3356,136.51,136.48,0.04907795]
[1740685632161,7.3364,136.5,136.47,1.9254]
[1740685632461,1.8665,136.56,136.48,0.05151051]
[1740685632655,1.32293527,136.55,136.48,0.05151051]
[1740685633154,7.3358,136.51,136.48,0.05151051]
[1740685633356,7.3358,136.51,136.48,21.98734823]
[1740685634055,1.8665,136.56,136.48,21.98734823]
[1740685634260,7.3362,136.5,136.48,21.98734823]
[1740685634455,1.8665,136.56,136.48,7.38851051]
[1740685634664,1.8665,136.56,136.48,0.05151051]
[1740685634856,7.3353,136.52,136.48,0.05151051]
[1740685635051,1.8665,136.56,136.48,21.98734823]
[1740685635258,7.3342,136.54,136.48,0.05151051]
[1740685635458,1.8665,136.56,136.48,1.91481051]
[1740685635960,7.3349,136.53,136.48,1.91481051]
[1740685636157,1.8665,136.56,136.48,1.91481051]
[1740685636363,1.8665,136.56,136.48,23.85064823]
[1740685637163,7.3352,136.52,136.48,31.18754823]
[1740685637373,1.8665,136.56,136.48,21.98734823]
[1740685637565,7.336,136.51,136.48,21.98734823]
[1740685637768,9.51779445,136.56,136.48,21.98734823]
[1740685637965,1.32109798,136.55,136.48,0.05151051]
[1740685638165,7.3358,136.51,136.48,0.05151051]
[1740685638663,9.51779445,136.56,136.48,0.05151051]
[1740685638869,7.3361,136.5,136.48,0.05151051]
[1740685639069,9.51779445,136.56,136.48,21.98734823]
[1740685639273,7.3364,136.5,136.48,0.05151051]
[1740685640271,7.3366,136.49,136.48,0.05151051]
[1740685640774,7.3363,136.5,136.48,0.05151051]
[1740685642278,7.3354,136.52,136.48,0.05151051]
[1740685642671,7.3354,136.52,136.48,7.38861051]
[1740685642880,12.06,136.54,136.48,0.05151051]
[1740685642881,7.3357,136.51,136.48,0.05151051]
[1740685643067,12.06,136.54,136.48,0.05151051]
[1740685643375,12.06,136.54,136.48,21.98734823]
[1740685643575,12.06,136.54,136.48,0.05151051]
[1740685643874,1.32044668,136.53,136.48,0.05151051]
[1740685644076,12.06,136.54,136.48,0.05151051]
[1740685644276,12.06,136.54,136.48,21.98734823]
[1740685644877,7.3361,136.5,136.48,21.98734823]
[1740685645080,12.06,136.54,136.48,21.98734823]
[1740685645383,7.3366,136.49,136.48,0.05151051]
[1740685647681,12.06,136.54,136.48,0.05151051]
[1740685647682,7.3363,136.5,136.48,0.05151051]
[1740685647877,12.06,136.54,136.48,0.05151051]
[1740685648378,12.06,136.54,136.48,21.98734823]
[1740685648784,7.3366,136.49,136.48,21.98734823]
[1740685648986,12.06,136.54,136.48,21.98734823]
[1740685649282,12.06,136.54,136.48,0.05151051]
[1740685649677,7.335,136.52,136.48,0.05151051]
[1740685649982,12.06,136.54,136.48,0.05151051]
[1740685650178,7.3366,136.49,136.48,21.98734823]
[1740685650980,12.06,136.54,136.48,21.98734823]
[1740685651581,7.3366,136.49,136.48,21.98734823]
[1740685653287,7.3366,136.49,136.48,0.05151051]
[1740685654179,7.3388,136.45,136.44,11.75]
[1740685657391,0.04858659,136.46,136.44,11.75]
[1740685657987,7.3388,136.45,136.44,11.75]
[1740685658787,0.04858659,136.46,136.37,1.8495]
[1740685659093,12.08,136.47,136.37,21.93583772]
[1740685659586,1.32065906,136.46,136.37,21.93583772]
[1740685659988,0.04761483,136.43,136.4,0.05174298]
[1740685660492,0.04761483,136.43,136.33,3.8869]
[1740685660693,7.65704646,136.44,136.33,33.16763772]
[1740685660892,7.3424,136.39,136.33,25.82273772]
[1740685661497,12.06,136.4,136.33,21.93583772]
[1740685661692,0.05045276,136.37,136.35,0.04640941]
[1740685662187,0.05045276,136.37,136.35,21.98224713]
[1740685662390,0.05045276,136.37,136.35,0.04640941]
[1740685662588,0.05045276,136.37,136.28,19.7838]
[1740685662799,0.05045276,136.37,136.28,39.68203772]
[1740685662988,7.3456,136.33,136.28,37.69583772]
[1740685663188,19.4056,136.33,136.28,37.69583772]
[1740685663384,12.06,136.33,136.28,37.69583772]
[1740685663695,0.05510108,136.32,136.29,0.04799474]
[1740685664594,7.40120108,136.32,136.29,0.04799474]
[1740685666295,7.3464,136.31,136.29,0.04799474]
[1740685667292,7.3468,136.3,136.28,15.76]
[1740685667494,0.05510108,136.32,136.28,10.2663]
[1740685667995,7.3474,136.29,136.28,10.2663]
[1740685668197,191.05510108,136.32,136.22,7.3508]
[1740685668397,1.31862779,136.31,136.22,29.28663772]
[1740685668702,7.39874901,136.28,136.26,0.05434854]
[1740685669699,0.05044901,136.28,136.26,0.05434854]
[1740685670696,7.39874901,136.28,136.26,0.05434854]
[1740685671002,0.05044901,136.28,136.26,0.05434854]
[1740685671793,7.39834901,136.28,136.26,0.05434854]
[1740685672098,0.05044901,136.28,136.26,0.05434854]
[1740685672606,7.3484,136.27,136.26,0.05434854]
[1740685675401,7.3484,136.27,136.26,4.854e-05]
[1740685676506,30.68718167,136.27,136.26,4.854e-05]
[1740685677404,29.3684,136.27,136.26,4.854e-05]
[1740685677607,30.68713627,136.27,136.26,4.854e-05]
[1740685678506,8.66713627,136.27,136.26,4.854e-05]
[1740685679003,7.3484,136.27,136.26,4.854e-05]
[1740685679696,0.05044901,136.28,136.26,4.854e-05]
[1740685680504,7.3484,136.27,136.26,4.854e-05]
[1740685684409,8.66611445,136.27,136.26,4.854e-05]
[1740685686004,30.68611445,136.27,136.26,4.854e-05]
[1740685686604,52.74611445,136.27,136.26,4.854e-05]
[1740685686805,30.68611445,136.27,136.26,4.854e-05]
[1740685687005,8.66611445,136.27,136.26,4.854e-05]
[1740685687206,52.74611445,136.27,136.26,4.854e-05]
[1740685688005,30.68611445,136.27,136.26,4.854e-05]
[1740685688212,8.66611445,136.27,136.26,4.854e-05]
[1740685688412,7.3484,136.27,136.26,4.854e-05]
[1740685688612,8.66689739,136.27,136.26,4.854e-05]
[1740685690110,30.68589846,136.27,136.26,4.854e-05]
[1740685690310,38.3534893,136.27,136.26,4.854e-05]
[1740685690811,38.35348061,136.27,136.26,4.854e-05]
[1740685691914,82.47348061,136.27,136.26,4.854e-05]
[1740685693318,16.33348061,136.27,136.26,4.854e-05]
[1740685694414,19.3084,136.27,136.26,4.854e-05]
[1740685694614,20.62705437,136.27,136.26,4.854e-05]
[1740685694816,19.3084,136.27,136.26,4.854e-05]
[1740685696217,20.62739997,136.27,136.26,4.854e-05]
[1740685696618,19.3084,136.27,136.26,4.854e-05]
[1740685697513,20.6281715,136.27,136.26,4.854e-05]
[1740685698214,64.7081715,136.27,136.26,4.854e-05]
[1740685698517,42.6881715,136.27,136.26,4.854e-05]
[1740685699914,41.3684,136.27,136.26,4.854e-05]
[1740685700116,42.68850772,136.27,136.26,4.854e-05]
[1740685700718,64.70850772,136.27,136.26,4.854e-05]
[1740685701218,7.3511,136.22,136.21,4.854e-05]
[1740685703915,7.3517,136.21,136.2,3.993e-05]
[1740685704421,8.67169169,136.21,136.2,3.993e-05]
[1740685704923,16.34252196,136.21,136.2,3.993e-05]
[1740685705624,8.67169169,136.21,136.2,3.993e-05]
[1740685705917,16.34336748,136.21,136.2,3.993e-05]
[1740685706327,38.36336748,136.21,136.2,3.993e-05]
[1740685706524,40.27336748,136.21,136.2,3.993e-05]
[1740685706717,69.67829238,136.21,136.2,3.993e-05]
[1740685707025,7.3571,136.11,136.1,10.15340292]
[1740685707229,19.3371,136.11,136.1,32.08924064]
[1740685708124,11.98,136.11,136.07,5.6827]
[1740685708425,11.98,136.11,136.09,0.05527446]
[1740685710116,11.98,136.11,136.09,21.99111218]
[1740685710527,11.98,136.11,136.09,0.05527446]
[1740685710830,7.3576,136.1,136.09,0.05527446]
[1740685713229,7.3576,136.1,136.09,7.446e-05]
[1740685713623,8.67448829,136.1,136.09,7.446e-05]
[1740685716619,7.3576,136.1,136.09,7.446e-05]
[1740685721836,0.04892797,136.12,136.09,7.446e-05]
[1740685722035,11.96,136.11,136.09,7.446e-05]
[1740685722434,7.3576,136.1,136.09,21.93591218]
[1740685722829,11.96,136.11,136.09,21.93591218]
[1740685723024,11.96,136.11,136.09,7.446e-05]
[1740685723226,0.04892797,136.12,136.09,7.446e-05]
[1740685723431,7.40512797,136.12,136.09,7.446e-05]
[1740685723834,4.32492797,136.12,136.09,7.446e-05]
[1740685724033,11.96,136.13,136.09,7.446e-05]
[1740685724229,7.67393142,136.16,136.09,7.446e-05]
[1740685724536,7.3552,136.12,136.09,21.93591218]
[1740685724835,11.96,136.15,136.09,21.93591218]
[1740685725030,7.355,136.13,136.09,21.93591218]
[1740685725238,0.05584642,136.12,136.09,21.93591218]
[1740685728639,0.05584642,136.12,136.09,7.446e-05]
[1740685728827,7.3562,136.1,136.09,7.446e-05]
[1740685729241,0.05584642,136.12,136.09,7.446e-05]
[1740685729538,7.356,136.11,136.09,7.446e-05]
[1740685730136,0.05584642,136.12,136.09,7.446e-05]
[1740685730734,7.3559,136.11,136.09,7.446e-05]
[1740685731240,7.41124642,136.12,136.09,7.446e-05]
[1740685731539,0.05584642,136.12,136.09,7.446e-05]
[1740685731936,7.3559,136.11,136.09,7.446e-05]
[1740685732137,0.05584642,136.12,136.09,7.446e-05]
[1740685732538,7.3562,136.1,136.09,7.446e-05]
[1740685732738,7.3562,136.1,136.09,21.93591218]
[1740685738447,0.05584642,136.12,136.09,21.93591218]
[1740685739046,7.3562,136.1,136.09,21.93591218]
[1740685739648,7.3559,136.11,136.09,21.93591218]
[1740685739848,0.05584642,136.12,136.09,21.93591218]
[1740685740749,0.05584642,136.12,136.09,7.446e-05]
[1740685741251,7.3562,136.1,136.09,7.446e-05]
[1740685741749,15.0328117,136.1,136.09,7.446e-05]
[1740685741945,7.3562,136.1,136.09,7.446e-05]
[1740685743150,7.3559,136.11,136.09,7.446e-05]
[1740685743650,0.05584642,136.12,136.09,7.446e-05]
[1740685743851,7.41134642,136.12,136.09,7.446e-05]
[1740685744153,0.05584642,136.12,136.09,7.446e-05]
[1740685744443,241.12172718,136.2,136.09,7.446e-05]
[1740685744444,1.31527236,136.17,136.09,7.446e-05]
[1740685744649,77.40812644,136.18,136.12,7.3548]
[1740685744845,77.40812644,136.18,136.13,1.9267]
[1740685745450,0.05010135,136.17,136.14,0.05287332]
[1740685745643,49.31088872,136.18,136.14,0.05287332]
[1740685746048,46.29258872,136.18,136.14,0.05287332]
[1740685746451,7.3515,136.19,136.14,0.05287332]
[1740685746849,4.42246562,136.19,136.14,0.05287332]
[1740685747444,7.3509,136.2,136.14,22.09287332]
[1740685747752,7.3509,136.2,136.13,1.9267]
[1740685747942,7.3509,136.2,136.13,23.9667]
[1740685748146,0.05236009,136.18,136.15,0.05490795]
[1740685748547,0.05236009,136.18,136.15,22.09490795]
[1740685748750,115.94169942,136.24,136.15,22.09490795]
[1740685748947,85.80371594,136.25,136.16,7.3526]
[1740685749251,85.80371594,136.25,136.13,194.9267]
[1740685749443,85.80371594,136.25,136.13,193.0]
[1740685750046,0.04845411,136.2,136.18,0.05038828]
[1740685750454,7.3517,136.19,136.18,0.05038828]
[1740685751753,0.0470034,136.2,136.18,0.05038828]
[1740685752052,7.3979034,136.2,136.18,0.05038828]
[1740685752352,0.0470034,136.2,136.18,0.05038828]
[1740685752552,7.3980034,136.2,136.18,0.05038828]
[1740685753253,0.0470034,136.2,136.18,0.05038828]
[1740685753553,0.0470034,136.2,136.18,22.07038828]
[1740685754157,0.0470034,136.2,136.19,7.3513]
[1740685754755,0.0470034,136.2,136.19,29.3713]
[1740685755456,0.0470034,136.2,136.18,0.05038828]
[1740685755856,7.3981034,136.2,136.18,0.05038828]
[1740685756049,0.0470034,136.2,136.18,0.05038828]
[1740685757850,0.0470034,136.2,136.18,7.40178828]
[1740685758051,0.0470034,136.2,136.18,0.05038828]
[1740685759156,0.0470034,136.2,136.18,7.40188828]
[1740685759355,0.0470034,136.2,136.18,0.05038828]
[1740685759759,0.0470034,136.2,136.19,7.3513]
[1740685760255,0.0470034,136.2,136.19,29.3713]
[1740685761859,7.3483,136.25,136.22,7.3496]
[1740685762457,7.3478,136.26,136.18,193.0]
[1740685762855,4.0253,136.29,136.18,193.0]
[1740685763061,0.04878847,136.23,136.22,7.3494]
[1740685763250,7.3482,136.25,136.22,7.3494]
[1740685763455,4.0253,136.29,136.21,0.04963609]
[1740685763754,0.05498336,136.24,136.21,0.04963609]
[1740685764263,7.3497,136.22,136.21,0.04963609]
[1740685764962,7.40408336,136.24,136.21,0.04963609]
[1740685765465,7.40408336,136.24,136.21,7.39973609]
[1740685765666,0.05498336,136.24,136.21,0.04963609]
[1740685766164,0.05498336,136.24,136.22,7.3494]
[1740685766565,0.05498336,136.24,136.21,0.04963609]
[1740685767066,7.40388336,136.24,136.21,0.04963609]
[1740685767262,0.05498336,136.24,136.21,0.04963609]
[1740685767757,0.05498336,136.24,136.23,7.3491]
[1740685767958,3.733,136.33,136.21,22.06963609]
[1740685768160,3.733,136.33,136.21,0.04963609]
[1740685768873,3.733,136.33,136.27,7.3469]
[1740685769166,3.733,136.33,136.21,193.0]
[1740685769370,1.8705,136.35,136.21,193.0]
[1740685769572,11.96,136.36,136.21,193.0]
[1740685770467,0.05191414,136.3,136.27,0.05347433]
[1740685770668,3.733,136.37,136.2,14.7014]
[1740685770969,0.04722979,136.3,136.29,7.3454]
[1740685771170,3.733,136.37,136.29,7.3454]
[1740685771471,7.3458,136.3,136.28,0.04680592]
[1740685771673,3.733,136.37,136.2,207.7014]
[1740685771874,3.733,136.37,136.28,0.05515791]
[1740685772174,3.733,136.37,136.3,7.3452]
[1740685772374,0.05465455,136.34,136.31,0.05387926]
[1740685772572,3.733,136.37,136.28,7.3461]
[1740685772872,0.05509352,136.34,136.18,53.48627072]
[1740685773072,7.3457,136.3,136.18,53.48627072]
[1740685773470,18.4163,136.37,136.18,53.48627072]
[1740685773667,1.31971455,136.36,136.18,53.48627072]
[1740685774075,7.347,136.27,136.26,0.05126642]
[1740685774278,18.4163,136.37,136.18,53.48627072]
[1740685774466,0.04951661,136.28,136.25,0.05586562]
[1740685774671,7.3465,136.28,136.24,7.3483]
[1740685774865,7.3465,136.28,136.25,0.0533016]
[1740685775071,7.39351274,136.28,136.25,0.0533016]
[1740685775771,0.04701274,136.28,136.25,0.0533016]
[1740685777976,7.39381274,136.28,136.25,7.4012016]
[1740685778276,0.04701274,136.28,136.25,0.0533016]
[1740685779075,7.3475,136.26,136.25,0.0533016]
[1740685779376,0.04701274,136.28,136.18,63.63967364]
[1740685779577,0.04701274,136.28,136.18,17.50480292]
[1740685779777,5.8434,136.31,136.18,10.15340292]
[1740685779979,1.3190592,136.3,136.18,10.15340292]
[1740685780181,7.3495,136.23,136.18,10.15340292]
[1740685780372,5.8434,136.31,136.18,10.15340292]
[1740685780570,0.04648878,136.25,136.23,0.05422362]
[1740685780777,0.04648878,136.25,136.18,10.15340292]
[1740685780778,12.0,136.25,136.18,10.15340292]
[1740685781478,19.3483,136.25,136.19,7.351]
[1740685781679,12.0,136.25,136.18,10.15340292]
[1740685781881,0.0560475,136.23,136.21,0.0539143]
[1740685783282,0.0560475,136.23,136.22,7.3497]
[1740685783582,4.75e-05,136.23,136.22,7.3497]
[1740685783782,3.9874,136.31,136.25,7.3477]
[1740685784278,3.9874,136.31,136.24,7.3483]
[1740685784679,3.9874,136.31,136.17,12.0]
[1740685784876,7.3471,136.27,136.26,0.05157648]
[1740685785077,7.3471,136.27,136.21,7.3499]
[1740685785272,0.04798627,136.28,136.25,0.04717684]
[1740685785477,1.9081,136.3,136.17,12.0]
[1740685785682,0.05608192,136.28,136.25,0.04942625]
[1740685785983,12.0,136.28,136.13,40.68613138]
[1740685786180,12.0,136.28,136.2,40.58193138]
[1740685787079,0.04806174,136.25,136.23,0.05218746]
[1740685787280,0.04806174,136.25,136.2,40.58193138]
[1740685787480,7.349,136.24,136.2,40.58193138]
[1740685787681,0.04806174,136.25,136.2,40.58193138]
[1740685788285,7.3487,136.24,136.21,0.05249057]
[1740685789582,0.04806174,136.25,136.16,7.3527]
[1740685789787,1.9557,136.23,136.16,7.3527]
[1740685790284,7.3502,136.21,136.15,47.93513138]
[1740685790787,0.04887272,136.19,136.17,0.05103611]
[1740685792787,7.40057272,136.19,136.17,0.05103611]
[1740685794790,7.3518,136.18,136.17,0.05103611]
[1740685797889,0.04887272,136.19,136.17,0.05103611]
[1740685799392,0.04887272,136.19,136.18,7.3518]
[1740685799591,0.04887272,136.19,136.17,0.05103611]
[1740685800194,0.04887272,136.19,136.18,7.3518]
[1740685800388,0.04887272,136.19,136.18,29.3718]
[1740685800588,1.9334,136.26,136.17,0.05103611]
[1740685800786,1.9334,136.26,136.11,30.51844092]
[1740685800987,1.9334,136.26,136.11,15.80814092]
[1740685801697,0.0498909,136.2,136.17,0.05436487]
[1740685801887,7.35,136.22,136.18,7.3517]
[1740685802092,0.04845907,136.2,136.18,7.3517]
[1740685802390,0.04845907,136.2,136.18,7.3518]
[1740685802696,5.907e-05,136.2,136.17,0.0551779]
[1740685802896,5.907e-05,136.2,136.19,7.3513]
[1740685804101,5.907e-05,136.2,136.18,7.3516]
[1740685804301,5.907e-05,136.2,136.17,0.0551779]
[1740685804898,5.907e-05,136.2,136.09,40.58193138]
[1740685805098,3.8338,136.2,136.09,40.58193138]
[1740685805296,7.3521,136.18,136.09,40.58193138]
[1740685805901,7.3527,136.17,136.09,40.58193138]
[1740685806203,0.04723757,136.15,136.12,0.05472824]
[1740685807400,7.3545,136.14,136.08,7.357]
[1740685807604,11.3451,136.14,136.08,7.357]
[1740685807803,3.9906,136.14,136.07,17.51100292]
[1740685807998,7.3553,136.12,136.07,10.15340292]
[1740685808403,0.05392342,136.11,136.08,0.04904397]
[1740685808604,7.40992342,136.11,136.08,0.04904397]
[1740685808902,0.05392342,136.11,136.08,0.04904397]
[1740685809207,7.40992342,136.11,136.08,0.04904397]
[1740685809405,0.05392342,136.11,136.08,0.04904397]
[1740685810009,0.05392342,136.11,136.03,40.58193138]
[1740685810305,7.3582,136.07,136.03,40.58193138]
[1740685810505,0.05392342,136.11,136.03,40.58193138]
[1740685810700,15.9906,136.14,136.03,40.58193138]
[1740685811010,1.3160402,136.13,136.03,40.58193138]
[1740685811213,0.05121276,136.1,136.07,9.4e-07]
[1740685811406,7.3572,136.08,136.07,9.4e-07]
[1740685811811,29.3972,136.08,136.07,9.4e-07]
[1740685812213,7.359,136.05,136.03,34.42113232]
[1740685812607,12.0,136.07,136.03,34.42113232]
[1740685812808,9.325,136.06,136.03,34.42113232]
[1740685813115,9.325,136.06,135.95,1.889]
[1740685813116,1.9664,136.06,135.95,1.889]
[1740685813307,2.01834395,136.06,136.03,0.05206196]
[1740685813511,1.9664,136.06,135.95,1.889]
[1740685813707,2.01909445,136.06,135.95,1.889]
[1740685813915,2.01909445,136.06,136.03,0.04821088]
[1740685814116,1.9664,136.06,135.95,1.889]
[1740685814316,7.3589,136.05,136.03,0.04985526]
[1740685814512,1.9664,136.06,136.0,7.3613]
[1740685814712,0.05141707,136.05,136.03,0.05466962]
[1740685815317,7.41051707,136.05,136.03,0.05466962]
[1740685815516,0.05141707,136.05,135.95,1.889]
[1740685815814,1.9664,136.06,135.95,1.889]
[1740685816117,7.3595,136.04,135.95,1.889]
[1740685816313,1.9664,136.06,135.95,1.889]
[1740685816519,1.9664,136.06,135.97,7.3629]
[1740685816719,0.0560973,136.02,135.99,0.04827894]
[1740685817115,7.3616,136.0,135.99,0.04827894]
[1740685817617,0.0560973,136.02,135.91,12.08130292]
[1740685817919,3.8449,136.05,135.91,12.08130292]
[1740685818120,3.8449,136.05,135.93,7.3652]
[1740685818418,3.8449,136.05,135.91,10.15340292]
[1740685818819,0.05090096,135.99,135.97,0.05606963]
[1740685819022,11.98,135.98,135.91,10.15340292]
[1740685819317,1.8672,135.97,135.91,10.15340292]
[1740685820220,0.05393433,135.95,135.93,0.05414928]
[1740685820521,7.41853433,135.95,135.93,0.05414928]
[1740685820816,7.3648,135.94,135.93,0.05414928]
[1740685821120,0.05393433,135.95,135.85,4.0309]
[1740685821509,1.8672,135.97,135.85,4.0309]
[1740685822320,0.05578516,135.92,135.9,0.05632516]
[1740685823114,7.3667,135.91,135.9,0.05632516]
[1740685823414,0.05578516,135.92,135.84,10.15340292]
[1740685823715,1.8672,135.97,135.84,10.15340292]
[1740685824224,1.9958,135.96,135.84,10.15340292]
[1740685824513,1.9958,135.96,135.81,1.9304]
[1740685824717,0.05071505,135.91,135.89,0.02687777]
[1740685824923,11.98,135.9,135.81,1.9304]
[1740685825218,7.3676,135.89,135.81,1.9304]
[1740685825519,11.98,135.9,135.81,1.9304]
[1740685825923,7.3681,135.88,135.83,7.3704]
[1740685826119,0.0489793,135.87,135.81,1.9304]
[1740685826422,7.3698,135.85,135.81,1.9304]
[1740685826615,7.3698,135.85,135.8,7.3724]
[1740685826816,3.8996,135.89,135.79,1.9407]